[Event "Chinese Team-ch Men 2025"]
[Site "Zhang Jiakou Hebei"]
[Date "2025.04.27"]
[Round "3.13"]
[White "Chen, Qi b"]
[Black "Cao, Qingfeng"]
[Result "1/2-1/2"]
[Annotator "ChessBase"]
[ECO "E40"]
[WhiteElo "2482"]
[BlackElo "2443"]
[PlyCount "62"]
[EventDate "2025.04.26"]
[EventType "team-tourn"]
[EventCountry "CHN"]
[SourceTitle "playchess.com"]
[Source "ChessBase"]
[SourceQuality "1"]
[TimeControl "5400+30"]

1. d4 {[%emt 0:00:03]} Nf6 {[%emt 0:00:13]} 2. c4 {[%emt 0:00:06]} e6 {[%emt 0:00:06]} 3. Nc3 {[%emt 0:00:04]} Bb4 {[%emt 0:00:20]} 4. e3 {[%emt 0:00:07]} O-O {[%emt 0:00:12]} 5. a3 {[%emt 0:00:04]} Bxc3+ {[%emt 0:00:10]} 6. bxc3 {[%emt 0:00:03]} Nc6 {[%emt 0:04:47]} 7. Bd3 {[%emt 0:05:58]} e5 {[%emt 0:00:25]} 8. Ne2 {[%emt 0:00:50]} e4 {[%emt 0:02:18]} 9. Bc2 {[%emt 0:02:42]} Na5 {[%emt 0:04:53]} 10. Ng3 {[%emt 0:06:32]} Nxc4 {[%emt 0:13:35]} 11. Nxe4 {[%emt 0:00:47]} Nxe4 {[%emt 0:07:22]} 12. Bxe4 {[%emt 0:00:04]} d5 {[%emt 0:00:15]} 13. Bd3 {[%emt 0:01:44]} b5 {[%emt 0:14:02]} 14. a4 {[%emt 0:08:24]} c6 {[%emt 0:03:31]} 15. O-O {[%emt 0:00:41]} Re8 {[%emt 0:01:41]} 16. Re1 {[%emt 0:05:46]} Qa5 {[%emt 0:09:59]} 17. Qc2 {[%emt 0:06:13]} f5 {[%emt 0:04:25]} 18. Ba3 {[%emt 0:09:12]} g6 {[%emt 0:10:29]} 19. Bxc4 {[%emt 0:10:18]} dxc4 {[%emt 0:01:00]} 20. Bc5 {[%emt 0:01:57]} Qc7 {[%emt 0:01:00]} 21. f3 {[%emt 0:00:15]} Be6 {[%emt 0:03:24]} 22. e4 {[%emt 0:00:40]} a5 {[%emt 0:01:19]} 23. Qf2 {[%emt 0:02:28]} bxa4 {[%emt 0:02:43]} 24. Rxa4 {[%emt 0:01:13]} Rab8 {[%emt 0:00:16]} 25. Qa2 {[%emt 0:08:04]} Bd5 {[%emt 0:00:58]} 26. e5 {[%emt 0:00:44]} Rb5 {[%emt 0:00:45]} 27. Ra1 {[%emt 0:00:19]} Qb7 {[%emt 0:03:18]} 28. Rxa5 {[%emt 0:04:46]} Rb2 {[%emt 0:00:54]} 29. Qa3 {[%emt 0:00:03]} Rb1+ {[%emt 0:01:37]} 30. Kf2 {[%emt 0:00:03]} Rb2+ {[%emt 0:00:33]} 31. Kg1 {[%emt 0:00:05]} Rb1+ {[%emt 0:00:39]} 1/2-1/2

[Event "Chinese Team-ch Men 2025"]
[Site "Zhang Jiakou Hebei"]
[Date "2025.04.27"]
[Round "3.14"]
[White "Dong, Hongfu"]
[Black "Jin, Hongtao"]
[Result "1-0"]
[Annotator "ChessBase"]
[ECO "C58"]
[WhiteElo "2238"]
[BlackElo "2343"]
[PlyCount "163"]
[EventDate "2025.04.26"]
[EventType "team-tourn"]
[EventCountry "CHN"]
[SourceTitle "playchess.com"]
[Source "ChessBase"]
[SourceQuality "1"]
[TimeControl "5400+30"]

1. e4 {[%emt 0:00:06]} e5 {[%emt 0:00:05]} 2. Nf3 {[%emt 0:00:09]} Nc6 {[%emt 0:00:06]} 3. Bc4 {[%emt 0:00:08]} Nf6 {[%emt 0:00:06]} 4. Ng5 {[%emt 0:01:51]} d5 {[%emt 0:00:04]} 5. exd5 {[%emt 0:00:07]} Na5 {[%emt 0:00:08]} 6. Bb5+ {[%emt 0:00:11]} c6 {[%emt 0:00:07]} 7. dxc6 {[%emt 0:00:05]} bxc6 {[%emt 0:00:04]} 8. Bd3 {[%emt 0:00:07]} Nd5 {[%emt 0:00:28]} 9. Nf3 {[%emt 0:00:07]} Bd6 {[%emt 0:00:24]} 10. O-O {[%emt 0:00:08]} O-O {[%emt 0:03:24]} 11. Re1 {[%emt 0:00:07]} f5 {[%emt 0:00:04]} 12. Nxe5 {[%emt 0:00:06]} Qf6 {[%emt 0:00:06]} 13. Nf3 {[%emt 0:00:05]} g5 {[%emt 0:00:11]} 14. c4 {[%emt 0:00:05]} Nf4 {[%emt 0:00:54]} 15. Bf1 {[%emt 0:00:06]} g4 {[%emt 0:00:08]} 16. d4 {[%emt 0:00:05]} gxf3 {[%emt 0:00:27]} 17. Qxf3 {[%emt 0:00:04]} Ne6 {[%emt 0:00:32]} 18. Qc3 {[%emt 0:00:06]} Nb7 {[%emt 0:04:41]} 19. c5 {[%emt 0:00:08]} Bc7 {[%emt 0:00:02]} 20. b4 {[%emt 0:00:13]} a5 {[%emt 0:00:06]} 21. b5 {[%emt 0:07:17]} cxb5 {[%emt 0:00:05]} 22. Bxb5 {[%emt 0:00:10]} a4 {[%emt 0:00:17]} 23. Bc4 {[%emt 0:19:45]} Kh8 {[%emt 0:18:50]} 24. Bxe6 {[%emt 0:37:50]} Bxe6 {[%emt 0:10:57]} 25. d5 {[%emt 0:00:15]} Qxc3 {[%emt 0:02:06]} 26. Nxc3 {[%emt 0:00:51]} Ba5 {[%emt 0:08:16]} 27. Bd2 {[%emt 0:03:05]} Bf7 {[%emt 0:10:07]} 28. c6 {[%emt 0:01:48]} Nd6 {[%emt 0:00:13]} 29. Rac1 {[%emt 0:05:01]} Bxd5 {[%emt 0:14:47]} 30. Bf4 {[%emt 0:07:18]} Bxc3 {[%emt 0:01:04]} 31. Rxc3 {[%emt 0:00:06]} Ne4 {[%emt 0:00:12]} 32. Rc2 {[%emt 0:00:05]} Rfe8 {[%emt 0:01:47]} 33. c7 {[%emt 0:00:29]} Bb7 {[%emt 0:02:43]} 34. f3 {[%emt 0:06:27]} Nf6 {[%emt 0:00:59]} 35. Re5 {[%emt 0:00:35]} Nd5 {[%emt 0:10:44]} 36. Rxf5 {[%emt 0:00:08]} Kg7 {[%emt 0:00:48]} 37. Rc5 {[%emt 0:04:14]} Ne7 {[%emt 0:02:48]} 38. Be5+ {[%emt 0:02:31]} Kg8 {[%emt 0:00:09]} 39. Rg5+ {[%emt 0:00:04]} Ng6 {[%emt 0:00:09]} 40. h4 {[%emt 0:00:18]} Kf7 {[%emt 0:00:33]} 41. Bg3 {[%emt 0:00:28]} h6 {[%emt 0:01:02]} 42. Rgf5+ {[%emt 0:00:10]} Ke6 {[%emt 0:00:53]} 43. Rh5 {[%emt 0:01:55]} Rh8 {[%emt 0:00:01]} 44. Rb5 {[%emt 0:00:09]} Bc8 {[%emt 0:02:18]} 45. Rb6+ {[%emt 0:02:13]} Kf7 {[%emt 0:00:10]} 46. Rd5 {[%emt 0:00:25]} Ra6 {[%emt 0:02:57]} 47. Rb8 {[%emt 0:01:10]} Ke7 {[%emt 0:02:44]} 48. h5 {[%emt 0:00:20]} Rg8 {[%emt 0:00:24]} 49. hxg6 {[%emt 0:00:40]} Raxg6 {[%emt 0:00:07]} 50. Bh4+ {[%emt 0:00:14]} Kf7 {[%emt 0:01:29]} 51. Rd2 {[%emt 0:00:14]} Rc6 {[%emt 0:00:50]} 52. Bd8 {[%emt 0:00:15]} Be6 {[%emt 0:00:33]} 53. Rb4 {[%emt 0:00:15]} a3 {[%emt 0:00:58]} 54. Rf4+ {[%emt 0:01:17]} Kg7 {[%emt 0:00:11]} 55. Rf6 {[%emt 0:00:28]} Rc1+ {[%emt 0:00:38]} 56. Kh2 {[%emt 0:00:09]} Bc8 {[%emt 0:00:14]} 57. Rdd6 {[%emt 0:00:08]} Re8 {[%emt 0:00:37]} 58. Rg6+ {[%emt 0:00:12]} Kh7 {[%emt 0:00:05]} 59. Rxh6+ {[%emt 0:00:06]} Kg7 {[%emt 0:00:05]} 60. Rdg6+ {[%emt 0:00:15]} Kf7 {[%emt 0:00:08]} 61. Rf6+ {[%emt 0:02:39]} Kg7 {[%emt 0:00:06]} 62. Rhg6+ {[%emt 0:00:04]} Kh7 {[%emt 0:00:06]} 63. Rg3 {[%emt 0:01:28]} Re5 {[%emt 0:00:25]} 64. Rf7+ {[%emt 0:00:25]} Kh6 {[%emt 0:00:08]} 65. Rg8 {[%emt 0:00:20]} Rh5+ {[%emt 0:01:55]} 66. Kg3 {[%emt 0:00:00]} Rh3+ {[%emt 0:00:44]} 67. gxh3 {[%emt 0:00:37]} Rg1+ {[%emt 0:00:06]} 68. Kh2 {[%emt 0:00:12]} Rxg8 {[%emt 0:00:04]} 69. Be7 {[%emt 0:00:03]} Kg6 {[%emt 0:01:55]} 70. Rf8 {[%emt 0:00:07]} Rxf8 {[%emt 0:00:33]} 71. Bxf8 {[%emt 0:00:04]} Kf5 {[%emt 0:00:22]} 72. Bxa3 {[%emt 0:00:19]} Kf4 {[%emt 0:00:08]} 73. h4 {[%emt 0:00:14]} Bb7 {[%emt 0:00:44]} 74. Bd6+ {[%emt 0:00:11]} Kf5 {[%emt 0:00:15]} 75. Kg3 {[%emt 0:00:08]} Kg6 {[%emt 0:00:20]} 76. a4 {[%emt 0:00:05]} Bc8 {[%emt 0:00:13]} 77. Kf4 {[%emt 0:00:05]} Kf6 {[%emt 0:00:08]} 78. h5 {[%emt 0:00:05]} Bb7 {[%emt 0:00:09]} 79. a5 {[%emt 0:00:04]} Bc8 {[%emt 0:00:07]} 80. Be5+ {[%emt 0:00:04]} Kf7 {[%emt 0:00:08]} 81. Kg5 {[%emt 0:00:04]} Bb7 {[%emt 0:00:15]} 82. h6 {[%emt 0:00:06]} 1-0

[Event "Chinese Team-ch Men 2025"]
[Site "Zhang Jiakou Hebei"]
[Date "2025.04.27"]
[Round "3.15"]
[White "Yang, ZiLong"]
[Black "Xia, Jinnan"]
[Result "1-0"]
[Annotator "ChessBase"]
[ECO "B92"]
[WhiteElo "2337"]
[BlackElo "1959"]
[PlyCount "153"]
[EventDate "2025.04.26"]
[EventType "team-tourn"]
[EventCountry "CHN"]
[SourceTitle "playchess.com"]
[Source "ChessBase"]
[SourceQuality "1"]
[TimeControl "5400+30"]

1. e4 {[%emt 0:00:30]} c5 {[%emt 0:00:05]} 2. Nf3 {[%emt 0:00:03]} d6 {[%emt 0:00:04]} 3. d4 {[%emt 0:00:04]} cxd4 {[%emt 0:00:04]} 4. Nxd4 {[%emt 0:00:04]} Nf6 {[%emt 0:00:04]} 5. Nc3 {[%emt 0:00:02]} a6 {[%emt 0:00:07]} 6. Be2 {[%emt 0:00:03]} e5 {[%emt 0:00:08]} 7. Nb3 {[%emt 0:00:03]} Be7 {[%emt 0:00:09]} 8. Be3 {[%emt 0:03:54]} Be6 {[%emt 0:03:00]} 9. Nd5 {[%emt 0:00:05]} Nbd7 {[%emt 0:01:21]} 10. Qd3 {[%emt 0:00:11]} O-O {[%emt 0:02:39]} 11. O-O {[%emt 0:03:52]} Bxd5 {[%emt 0:00:05]} 12. exd5 {[%emt 0:00:05]} Rc8 {[%emt 0:00:33]} 13. c4 {[%emt 0:00:05]} a5 {[%emt 0:00:19]} 14. Rad1 {[%emt 0:00:05]} b6 {[%emt 0:01:19]} 15. Kh1 {[%emt 0:00:20]} g6 {[%emt 0:05:19]} 16. f4 {[%emt 0:01:08]} Ne8 {[%emt 0:02:36]} 17. f5 {[%emt 0:06:56]} Bg5 {[%emt 0:04:42]} 18. Bg1 {[%emt 0:05:05]} Ng7 {[%emt 0:01:50]} 19. Bg4 {[%emt 0:02:14]} Nf6 {[%emt 0:11:32]} 20. Bh3 {[%emt 0:02:40]} Rb8 {[%emt 0:01:18]} 21. Nd2 {[%emt 0:04:45]} Re8 {[%emt 0:14:32]} 22. Ne4 {[%emt 0:05:36]} Nxe4 {[%emt 0:00:21]} 23. Qxe4 {[%emt 0:00:04]} Nh5 {[%emt 0:05:58]} 24. fxg6 {[%emt 0:01:51]} fxg6 {[%emt 0:05:14]} 25. g3 {[%emt 0:02:43]} Nf6 {[%emt 0:04:23]} 26. Qe2 {[%emt 0:02:04]} Kg7 {[%emt 0:00:05]} 27. Be6 {[%emt 0:00:52]} Qe7 {[%emt 0:05:24]} 28. h4 {[%emt 0:10:43]} Bh6 {[%emt 0:00:04]} 29. g4 {[%emt 0:00:12]} Bf4 {[%emt 0:01:17]} 30. Rxf4 {[%emt 0:00:31]} exf4 {[%emt 0:01:05]} 31. Bd4 {[%emt 0:00:08]} Kf8 {[%emt 0:03:27]} 32. Qf2 {[%emt 0:02:46]} Qb7 {[%emt 0:02:02]} 33. Re1 {[%emt 0:03:33]} Rxe6 {[%emt 0:05:46]} 34. Rxe6 {[%emt 0:00:04]} Nxd5 {[%emt 0:00:04]} 35. Kg1 {[%emt 0:00:05]} Rc8 {[%emt 0:06:55]} 36. cxd5 {[%emt 0:00:39]} Rc1+ {[%emt 0:00:04]} 37. Kh2 {[%emt 0:00:24]} Rh1+ {[%emt 0:01:19]} 38. Kxh1 {[%emt 0:00:02]} Qxd5+ {[%emt 0:00:04]} 39. Kh2 {[%emt 0:00:03]} Qxe6 {[%emt 0:00:03]} 40. Qxf4+ {[%emt 0:00:03]} Kg8 {[%emt 0:00:02]} 41. Qe3 {[%emt 0:00:23]} Qf7 {[%emt 0:00:45]} 42. Bxb6 {[%emt 0:00:04]} a4 {[%emt 0:00:06]} 43. Bd4 {[%emt 0:00:06]} Qd7 {[%emt 0:01:30]} 44. Qe4 {[%emt 0:00:03]} Qb5 {[%emt 0:00:34]} 45. Qe6+ {[%emt 0:00:05]} Kf8 {[%emt 0:00:01]} 46. Qxd6+ {[%emt 0:00:04]} Kf7 {[%emt 0:00:09]} 47. Qf6+ {[%emt 0:00:09]} Ke8 {[%emt 0:00:02]} 48. Qe5+ {[%emt 0:00:04]} Qxe5+ {[%emt 0:00:03]} 49. Bxe5 {[%emt 0:00:02]} Ke7 {[%emt 0:00:04]} 50. b3 {[%emt 0:00:03]} Ke6 {[%emt 0:00:03]} 51. Bb2 {[%emt 0:00:03]} axb3 {[%emt 0:00:02]} 52. axb3 {[%emt 0:00:03]} Kd5 {[%emt 0:00:02]} 53. Kg3 {[%emt 0:00:04]} Ke4 {[%emt 0:00:04]} 54. b4 {[%emt 0:00:02]} Kd5 {[%emt 0:00:04]} 55. Kf4 {[%emt 0:00:02]} h5 {[%emt 0:00:23]} 56. gxh5 {[%emt 0:00:03]} gxh5 {[%emt 0:00:02]} 57. Kg5 {[%emt 0:00:04]} Kc4 {[%emt 0:00:02]} 58. Bc3 {[%emt 0:00:06]} Kxc3 {[%emt 0:00:04]} 59. b5 {[%emt 0:00:02]} Kc4 {[%emt 0:00:03]} 60. b6 {[%emt 0:00:19]} Kc5 {[%emt 0:00:14]} 61. b7 {[%emt 0:00:04]} Kc4 {[%emt 0:00:02]} 62. Kxh5 {[%emt 0:00:05]} Kc5 {[%emt 0:00:04]} 63. Kg6 {[%emt 0:00:03]} Kc4 {[%emt 0:00:04]} 64. h5 {[%emt 0:00:02]} Kc5 {[%emt 0:00:01]} 65. h6 {[%emt 0:00:04]} Kc6 {[%emt 0:00:02]} 66. h7 {[%emt 0:00:04]} Kxb7 {[%emt 0:00:03]} 67. Kf6 {[%emt 0:00:03]} Kc6 {[%emt 0:00:03]} 68. Ke6 {[%emt 0:00:03]} Kc5 {[%emt 0:00:03]} 69. Ke5 {[%emt 0:00:04]} Kc4 {[%emt 0:00:03]} 70. h8=Q {[%emt 0:00:06]} Kd3 {[%emt 0:00:09]} 71. Qh3+ {[%emt 0:00:25]} Kc4 {[%emt 0:00:38]} 72. Qe3 {[%emt 0:00:35]} Kb5 {[%emt 0:00:00]} 73. Kd5 {[%emt 0:00:03]} Kb4 {[%emt 0:00:00]} 74. Qd3 {[%emt 0:00:06]} Ka5 {[%emt 0:00:00]} 75. Qb3 {[%emt 0:00:06]} Ka6 {[%emt 0:00:00]} 76. Kc6 {[%emt 0:00:10]} Ka7 {[%emt 0:00:00]} 77. Qb7# {[%emt 0:00:42]} 1-0

[Event "Chinese Team-ch Men 2025"]
[Site "Zhang Jiakou Hebei"]
[Date "2025.04.27"]
[Round "3.16"]
[White "Pan, Xizhi"]
[Black "Yu, Zechen"]
[Result "1/2-1/2"]
[Annotator "NA"]
[ECO "D02"]
[WhiteElo "1821"]
[BlackElo "2116"]
[PlyCount "81"]
[EventDate "2025.04.26"]
[EventType "team-tourn"]
[EventCountry "CHN"]
[SourceTitle "playchess.com"]
[Source "ChessBase"]
[SourceQuality "1"]
[TimeControl "5400+30"]

1. d4 {[%emt 0:00:03]} Nf6 {[%emt 0:00:07]} 2. Nf3 {[%emt 0:00:04]} d5 {[%emt 0:00:15]} 3. Bf4 {[%emt 0:00:07]} c5 {[%emt 0:00:14]} 4. c3 {[%emt 0:00:53]} Qb6 {[%emt 0:04:22]} 5. Qc2 {[%emt 0:00:23]} Nc6 {[%emt 0:00:10]} 6. e3 {[%emt 0:00:29]} g6 {[%emt 0:00:07]} 7. h3 {[%emt 0:00:16]} Bg7 {[%emt 0:17:10]} 8. Nbd2 {[%emt 0:03:37]} O-O {[%emt 0:03:55]} 9. Bd3 {[%emt 0:12:38]} Bd7 {[%emt 0:26:09]} 10. O-O {[%emt 0:02:04]} Rac8 {[%emt 0:01:49]} 11. Qb3 {[%emt 0:01:39]} c4 {[%emt 0:10:02]} 12. Qxb6 {[%emt 0:00:16]} axb6 {[%emt 0:00:02]} 13. Bc2 {[%emt 0:00:08]} b5 {[%emt 0:06:20]} 14. a3 {[%emt 0:00:17]} Nh5 {[%emt 0:06:37]} 15. Bh2 {[%emt 0:00:29]} f5 {[%emt 0:00:39]} 16. Bd1 {[%emt 0:04:24]} Bf6 {[%emt 0:02:44]} 17. Ne5 {[%emt 0:00:25]} Bxe5 {[%emt 0:00:45]} 18. dxe5 {[%emt 0:00:27]} Ng7 {[%emt 0:00:47]} 19. f4 {[%emt 0:00:12]} Rfd8 {[%emt 0:02:10]} 20. Nf3 {[%emt 0:01:10]} Ne6 {[%emt 0:01:53]} 21. Bc2 {[%emt 0:05:51]} Nc5 {[%emt 0:09:16]} 22. Rad1 {[%emt 0:00:09]} Be6 {[%emt 0:01:43]} 23. Nd4 {[%emt 0:01:05]} Nxd4 {[%emt 0:00:32]} 24. exd4 {[%emt 0:00:16]} Na4 {[%emt 0:00:16]} 25. Rb1 {[%emt 0:00:39]} Kf7 {[%emt 0:00:20]} 26. Kh1 {[%emt 0:00:22]} Rg8 {[%emt 0:00:24]} 27. Rf2 {[%emt 0:00:18]} Rc6 {[%emt 0:00:41]} 28. Bxa4 {[%emt 0:01:55]} bxa4 {[%emt 0:00:06]} 29. Rg1 {[%emt 0:00:03]} Rb6 {[%emt 0:00:17]} 30. g4 {[%emt 0:00:04]} Rc8 {[%emt 0:00:44]} 31. g5 {[%emt 0:00:36]} Rb3 {[%emt 0:04:10]} 32. Bg3 {[%emt 0:01:09]} Rc6 {[%emt 0:00:02]} 33. h4 {[%emt 0:00:05]} Rcb6 {[%emt 0:01:13]} 34. Rgg2 {[%emt 0:00:04]} Kg7 {[%emt 0:00:23]} 35. Rh2 {[%emt 0:00:08]} Bf7 {[%emt 0:00:08]} 36. Kg1 {[%emt 0:00:03]} Rc6 {[%emt 0:00:53]} 37. Rc2 {[%emt 0:00:31]} Ra6 {[%emt 0:00:51]} 38. Kf1 {[%emt 0:00:16]} Rab6 {[%emt 0:00:29]} 39. Ke1 {[%emt 0:00:06]} Be6 {[%emt 0:00:38]} 40. Kd1 {[%emt 0:00:05]} Bf7 {[%emt 0:00:22]} 41. Kc1 {[%emt 0:00:05]} 1/2-1/2

[Event "Chinese Team-ch Men 2025"]
[Site "Zhang Jiakou Hebei"]
[Date "2025.04.27"]
[Round "3.17"]
[White "Yu, Shaoteng"]
[Black "Gong, Changda"]
[Result "1-0"]
[Annotator "ChessBase"]
[ECO "C45"]
[WhiteElo "2480"]
[BlackElo "2131"]
[PlyCount "91"]
[EventDate "2025.04.26"]
[EventType "team-tourn"]
[EventCountry "CHN"]
[SourceTitle "playchess.com"]
[Source "ChessBase"]
[SourceQuality "1"]
[TimeControl "5400+30"]

1. e4 {[%emt 0:00:03]} e5 {[%emt 0:00:35]} 2. Nf3 {[%emt 0:00:16]} Nc6 {[%emt 0:00:02]} 3. d4 {[%emt 0:00:09]} exd4 {[%emt 0:00:05]} 4. Nxd4 {[%emt 0:00:07]} Nf6 {[%emt 0:00:01]} 5. Nxc6 {[%emt 0:00:18]} bxc6 {[%emt 0:00:07]} 6. Nd2 {[%emt 0:00:17]} d5 {[%emt 0:00:34]} 7. exd5 {[%emt 0:00:07]} cxd5 {[%emt 0:00:03]} 8. Bb5+ {[%emt 0:00:08]} Bd7 {[%emt 0:00:11]} 9. Bxd7+ {[%emt 0:00:08]} Qxd7 {[%emt 0:00:03]} 10. O-O {[%emt 0:00:11]} Be7 {[%emt 0:00:09]} 11. b3 {[%emt 0:00:06]} O-O {[%emt 0:00:14]} 12. Bb2 {[%emt 0:00:05]} c5 {[%emt 0:01:59]} 13. Qf3 {[%emt 0:00:15]} Rac8 {[%emt 0:04:59]} 14. Rad1 {[%emt 0:00:38]} Rfd8 {[%emt 0:11:13]} 15. Rfe1 {[%emt 0:02:56]} Qc7 {[%emt 0:04:22]} 16. h3 {[%emt 0:09:53]} a5 {[%emt 0:12:16]} 17. a4 {[%emt 0:12:40]} Ne8 {[%emt 0:14:27]} 18. Be5 {[%emt 0:07:45]} Qa7 {[%emt 0:02:57]} 19. Nb1 {[%emt 0:06:11]} d4 {[%emt 0:16:42]} 20. Na3 {[%emt 0:02:10]} Bd6 {[%emt 0:02:45]} 21. Nc4 {[%emt 0:01:08]} Bxe5 {[%emt 0:03:30]} 22. Rxe5 {[%emt 0:00:43]} Rd7 {[%emt 0:07:05]} 23. Qc6 {[%emt 0:02:25]} Qc7 {[%emt 0:04:14]} 24. Rde1 {[%emt 0:01:41]} Kf8 {[%emt 0:00:55]} 25. Qxc7 {[%emt 0:11:09]} Rdxc7 {[%emt 0:00:21]} 26. Nxa5 {[%emt 0:00:06]} Nd6 {[%emt 0:00:17]} 27. Rd5 {[%emt 0:00:37]} Re7 {[%emt 0:00:27]} 28. Kf1 {[%emt 0:07:22]} Rxe1+ {[%emt 0:03:12]} 29. Kxe1 {[%emt 0:00:02]} Ke7 {[%emt 0:00:14]} 30. Nc4 {[%emt 0:00:31]} Nxc4 {[%emt 0:00:22]} 31. bxc4 {[%emt 0:00:01]} Ra8 {[%emt 0:01:11]} 32. Rxc5 {[%emt 0:00:25]} Rxa4 {[%emt 0:00:02]} 33. Kd2 {[%emt 0:00:05]} Ra1 {[%emt 0:00:23]} 34. Re5+ {[%emt 0:03:05]} Kf6 {[%emt 0:00:40]} 35. Re1 {[%emt 0:00:31]} Ra3 {[%emt 0:04:19]} 36. Re4 {[%emt 0:00:20]} Ra1 {[%emt 0:00:28]} 37. Rxd4 {[%emt 0:01:16]} Ke5 {[%emt 0:00:22]} 38. Rd5+ {[%emt 0:00:41]} Ke6 {[%emt 0:00:04]} 39. Kc3 {[%emt 0:00:20]} Rg1 {[%emt 0:00:23]} 40. g3 {[%emt 0:00:07]} f5 {[%emt 0:00:57]} 41. Rd3 {[%emt 0:01:56]} g5 {[%emt 0:03:32]} 42. c5 {[%emt 0:00:13]} Ra1 {[%emt 0:00:36]} 43. Kc4 {[%emt 0:02:29]} Ra4+ {[%emt 0:00:59]} 44. Kb5 {[%emt 0:00:08]} Ra2 {[%emt 0:00:03]} 45. Rd2 {[%emt 0:00:18]} Rb2+ {[%emt 0:00:12]} 46. Kc4 {[%emt 0:00:13]} 1-0

[Event "Chinese Team-ch Men 2025"]
[Site "Zhang Jiakou Hebei"]
[Date "2025.04.27"]
[Round "3.18"]
[White "Qu, Haoming"]
[Black "Jiang, Haochen"]
[Result "0-1"]
[Annotator "ChessBase"]
[ECO "B28"]
[WhiteElo "2066"]
[BlackElo "2441"]
[PlyCount "182"]
[EventDate "2025.04.26"]
[EventType "team-tourn"]
[EventCountry "CHN"]
[SourceTitle "playchess.com"]
[Source "ChessBase"]
[SourceQuality "1"]
[TimeControl "5400+30"]

1. e4 {[%emt 0:00:03]} c5 {[%emt 0:00:25]} 2. Nf3 {[%emt 0:00:15]} a6 {[%emt 0:00:07]} 3. c3 {[%emt 0:01:37]} e6 {[%emt 0:00:07]} 4. d4 {[%emt 0:01:09]} d5 {[%emt 0:00:02]} 5. dxc5 {[%emt 0:04:52]} Bxc5 {[%emt 0:00:40]} 6. exd5 {[%emt 0:01:11]} Nf6 {[%emt 0:00:57]} 7. Bd3 {[%emt 0:01:43]} exd5 {[%emt 0:01:52]} 8. Qe2+ {[%emt 0:01:33]} Be7 {[%emt 0:00:28]} 9. h3 {[%emt 0:00:49]} O-O {[%emt 0:00:34]} 10. Be3 {[%emt 0:00:50]} Re8 {[%emt 0:00:32]} 11. O-O {[%emt 0:01:30]} Bc5 {[%emt 0:01:19]} 12. Nd4 {[%emt 0:02:07]} Nc6 {[%emt 0:01:45]} 13. Rd1 {[%emt 0:02:47]} Qb6 {[%emt 0:03:05]} 14. Qc2 {[%emt 0:03:27]} h6 {[%emt 0:07:09]} 15. Nxc6 {[%emt 0:11:59]} Bxe3 {[%emt 0:08:50]} 16. Nd4 {[%emt 0:00:42]} Bf4 {[%emt 0:02:00]} 17. Nd2 {[%emt 0:00:20]} Bd7 {[%emt 0:00:40]} 18. Re1 {[%emt 0:04:50]} Bc7 {[%emt 0:05:20]} 19. N2f3 {[%emt 0:13:13]} Nh5 {[%emt 0:06:03]} 20. Bh7+ {[%emt 0:04:00]} Kf8 {[%emt 0:02:18]} 21. Bf5 {[%emt 0:01:15]} Bxf5 {[%emt 0:01:31]} 22. Qxf5 {[%emt 0:00:16]} Nf6 {[%emt 0:00:17]} 23. Qc2 {[%emt 0:01:54]} g6 {[%emt 0:01:54]} 24. Rad1 {[%emt 0:10:47]} Re4 {[%emt 0:01:58]} 25. Nd2 {[%emt 0:04:09]} Qd6 {[%emt 0:04:30]} 26. g3 {[%emt 0:01:20]} Ree8 {[%emt 0:01:19]} 27. Nf1 {[%emt 0:04:00]} Ne4 {[%emt 0:01:14]} 28. h4 {[%emt 0:05:07]} Re7 {[%emt 0:02:21]} 29. Re3 {[%emt 0:01:25]} Rae8 {[%emt 0:01:54]} 30. Rf3 {[%emt 0:00:42]} Kg8 {[%emt 0:12:17]} 31. Ne3 {[%emt 0:03:08]} Nf6 {[%emt 0:10:12]} 32. Kg2 {[%emt 0:02:35]} Re4 {[%emt 0:00:53]} 33. Qd2 {[%emt 0:07:41]} R8e5 {[%emt 0:01:22]} 34. Qc2 {[%emt 0:02:47]} Bb6 {[%emt 0:02:09]} 35. Qb3 {[%emt 0:00:21]} Kg7 {[%emt 0:04:19]} 36. a4 {[%emt 0:00:55]} h5 {[%emt 0:01:19]} 37. a5 {[%emt 0:00:30]} Bxd4 {[%emt 0:00:18]} 38. cxd4 {[%emt 0:00:05]} Re7 {[%emt 0:00:06]} 39. Qa3 {[%emt 0:00:51]} R7e6 {[%emt 0:05:55]} 40. Qb3 {[%emt 0:00:16]} Qd7 {[%emt 0:00:50]} 41. Rd2 {[%emt 0:00:43]} Rc6 {[%emt 0:02:27]} 42. Rd1 {[%emt 0:00:57]} Re7 {[%emt 0:01:10]} 43. Re1 {[%emt 0:00:23]} Ree6 {[%emt 0:05:20]} 44. Rd1 {[%emt 0:00:25]} Rc7 {[%emt 0:00:48]} 45. Rd3 {[%emt 0:00:17]} Rc1 {[%emt 0:00:45]} 46. Rc3 {[%emt 0:00:32]} Rc6 {[%emt 0:00:38]} 47. Rxc1 {[%emt 0:00:58]} Rxc1 {[%emt 0:00:01]} 48. Qb6 {[%emt 0:00:13]} Rc6 {[%emt 0:01:54]} 49. Qb3 {[%emt 0:00:06]} Re6 {[%emt 0:00:05]} 50. Qb4 {[%emt 0:00:49]} Ne4 {[%emt 0:00:42]} 51. Rf4 {[%emt 0:00:25]} Qc6 {[%emt 0:00:43]} 52. Qb3 {[%emt 0:00:22]} Nf6 {[%emt 0:00:08]} 53. Qb4 {[%emt 0:00:11]} Qb5 {[%emt 0:00:52]} 54. Qxb5 {[%emt 0:00:46]} axb5 {[%emt 0:00:01]} 55. b4 {[%emt 0:00:02]} Rc6 {[%emt 0:00:36]} 56. Rf3 {[%emt 0:00:53]} Rc1 {[%emt 0:00:03]} 57. Rf4 {[%emt 0:00:10]} Rc6 {[%emt 0:00:52]} 58. Rf3 {[%emt 0:00:24]} Kf8 {[%emt 0:00:19]} 59. Rf4 {[%emt 0:01:44]} Ke7 {[%emt 0:00:07]} 60. f3 {[%emt 0:00:02]} Ke6 {[%emt 0:00:37]} 61. g4 {[%emt 0:00:18]} Rc1 {[%emt 0:00:18]} 62. Kf2 {[%emt 0:01:11]} Rb1 {[%emt 0:00:32]} 63. Ke2 {[%emt 0:00:20]} Rb2+ {[%emt 0:01:16]} 64. Kd3 {[%emt 0:00:25]} hxg4 {[%emt 0:00:28]} 65. fxg4 {[%emt 0:00:06]} Rb3+ {[%emt 0:00:43]} 66. Ke2 {[%emt 0:00:14]} Ne4 {[%emt 0:00:02]} 67. Nc2 {[%emt 0:00:15]} Rh3 {[%emt 0:00:09]} 68. Ne3 {[%emt 0:00:32]} Rxh4 {[%emt 0:00:14]} 69. Nf5 {[%emt 0:00:24]} Rh2+ {[%emt 0:00:10]} 70. Ke3 {[%emt 0:00:04]} gxf5 {[%emt 0:00:12]} 71. gxf5+ {[%emt 0:00:05]} Kf6 {[%emt 0:00:11]} 72. Rf1 {[%emt 0:00:10]} Rh3+ {[%emt 0:00:41]} 73. Kf4 {[%emt 0:00:05]} Nd6 {[%emt 0:00:15]} 74. a6 {[%emt 0:00:08]} bxa6 {[%emt 0:00:06]} 75. Ra1 {[%emt 0:00:02]} Rh4+ {[%emt 0:00:04]} 76. Kf3 {[%emt 0:00:03]} Rxd4 {[%emt 0:00:04]} 77. Rxa6 {[%emt 0:00:06]} Ke5 {[%emt 0:00:02]} 78. Rb6 {[%emt 0:00:08]} Rxb4 {[%emt 0:00:05]} 79. f6 {[%emt 0:00:06]} Rf4+ {[%emt 0:00:10]} 80. Kg3 {[%emt 0:00:04]} Rxf6 {[%emt 0:00:03]} 81. Rb8 {[%emt 0:00:03]} d4 {[%emt 0:00:03]} 82. Ra8 {[%emt 0:00:08]} d3 {[%emt 0:00:02]} 83. Ra3 {[%emt 0:00:06]} d2 {[%emt 0:00:03]} 84. Rd3 {[%emt 0:00:04]} Rf1 {[%emt 0:00:04]} 85. Rxd2 {[%emt 0:00:06]} Ne4+ {[%emt 0:00:02]} 86. Kg2 {[%emt 0:00:06]} Nxd2 {[%emt 0:00:06]} 87. Kh2 {[%emt 0:00:02]} Kf4 {[%emt 0:00:04]} 88. Kg2 {[%emt 0:00:05]} Kg4 {[%emt 0:00:04]} 89. Kh2 {[%emt 0:00:04]} Rf2+ {[%emt 0:00:04]} 90. Kg1 {[%emt 0:00:03]} Kg3 {[%emt 0:00:03]} 91. Kh1 {[%emt 0:00:05]} Rf1# {[%emt 0:00:07]} 0-1